bitfinex-derivatives/quotes_ETHF0:USTF0_20250803
["timestamp","ask_amount","ask_price","bid_price","bid_amount"]
[1754231035934,3.2078,3471.7,3471.6,2.0077]
[1754231036232,0.57608,3471.8,3471.5,0.7524]
[1754231036429,0.57604,3472.0,3471.5,2.0077]
[1754231036626,0.5605,3472.1,3471.8,1.2871]
[1754231036627,0.57603,3472.1,3471.8,1.2871]
[1754231036827,0.57601,3472.2,3472.0,2.0077]
[1754231037334,1.36461,3472.2,3472.1,22.7927]
[1754231037634,0.7886,3472.2,3472.1,22.7927]
[1754231037832,0.576,3472.3,3472.2,2.0077]
[1754231038839,0.57598,3472.4,3472.3,2.0077]
[1754231039039,0.57598,3472.4,3472.3,22.7927]
[1754231040539,0.5605,3472.5,3472.3,22.7927]
[1754231040540,0.57596,3472.5,3472.4,2.0077]
[1754231042240,0.57603,3472.1,3471.8,3.2078]
[1754231042544,5.98989281,3472.0,3471.9,20.782]
[1754231042748,0.57609,3471.7,3471.6,0.7524]
[1754231042939,2.16419,3471.7,3471.6,21.5334]
[1754231043137,0.57604,3472.0,3471.8,1.473]
[1754231043338,0.57604,3472.0,3471.9,1.2553]
[1754231043543,1.92514,3472.0,3471.9,2.0077]
[1754231043841,1.3491,3472.8,3471.8,3.78387]
[1754231044042,0.57598,3472.4,3471.9,0.57605]
[1754231044242,0.57598,3472.4,3472.1,2.0077]
[1754231044441,0.57598,3472.4,3472.0,20.781]
[1754231044739,0.57598,3472.4,3472.3,2.0077]
[1754231045644,4.64751,3473.0,3472.6,1.2553]
[1754231045645,0.57593,3472.7,3472.6,1.2553]
[1754231045850,0.57593,3472.7,3472.6,2.0077]
[1754231046434,3.2078,3473.0,3472.7,0.7524]
[1754231046650,0.57584,3473.2,3472.9,2.0077]
[1754231046943,1.36442,3473.4,3473.1,2.0077]
[1754231047144,1.36442,3473.4,3473.3,2.0077]
[1754231047444,0.7886,3473.7,3473.2,20.779]
[1754231047746,1.36436,3473.7,3473.6,2.0077]
[1754231047945,1.36436,3473.7,3473.6,22.7867]
[1754231048137,3.2078,3473.8,3473.6,22.7867]
[1754231048337,3.9964,3473.8,3473.7,2.0077]
[1754231048541,5.3165,3473.8,3473.7,22.7847]
[1754231049348,5.3165,3473.8,3473.7,21.5294]
[1754231049740,0.57576,3473.7,3473.2,0.7524]
[1754231050043,2.68446,3473.7,3473.4,2.0077]
[1754231050239,2.1087,3473.6,3473.5,21.4966]
[1754231050638,2.1087,3473.6,3473.5,22.249]
[1754231050838,0.5605,3473.6,3473.1,3.2078]
[1754231051043,0.57581,3473.4,3473.1,3.2078]
[1754231051241,0.57581,3473.4,3473.2,20.776]
[1754231051444,0.57584,3473.2,3473.1,3.2078]
[1754231051640,1.36443,3473.3,3473.2,1.2871]
[1754231051839,1.92493,3473.3,3473.2,2.0077]
[1754231052337,2.68453,3473.3,3473.2,22.7807]
[1754231053344,5.41385281,3473.6,3473.2,22.7807]
[1754231053647,0.57581,3473.4,3473.3,2.0077]
[1754231054445,0.57577,3473.7,3473.4,0.7767]
[1754231054646,0.57577,3473.7,3473.5,1.52]
[1754231054844,3.2078,3473.8,3473.7,0.7433]
[1754231055049,3.2078,3473.8,3473.7,2.0853]
[1754231055849,5.185,3473.8,3473.7,20.771]
[1754231056154,2.55304,3473.2,3473.1,0.7433]
[1754231056352,0.57579,3473.5,3473.2,2.0853]
[1754231056549,3.2078,3473.8,3472.7,3.2078]
[1754231056847,1.9772,3472.9,3472.8,22.8553]
[1754231057051,0.57583,3473.3,3472.8,20.77]
[1754231057441,0.725,3473.6,3472.8,20.77]
[1754231057442,3.2078,3473.7,3472.8,20.77]
[1754231057646,0.57577,3473.6,3473.5,1.342]
[1754231057846,3.2078,3473.7,3473.6,2.0853]
[1754231058155,3.78356,3473.7,3473.6,22.8533]
[1754231058351,3.2078,3473.7,3473.6,22.8533]
[1754231059448,1.2522,3473.7,3473.6,22.8533]
[1754231059851,1.30082,3473.4,3473.2,3.2078]
[1754231060048,1.82804,3473.2,3473.1,1.342]
[1754231060247,1.82804,3473.2,3473.1,22.108]
[1754231060448,1.82804,3473.2,3473.1,22.8513]
[1754231060748,1.2522,3473.2,3473.1,22.8513]
[1754231061445,0.725,3473.4,3473.1,22.8513]
[1754231061649,0.57578,3473.6,3473.2,5.2931]
[1754231061852,1.82798,3473.6,3473.4,2.0853]
[1754231062152,1.82798,3473.6,3473.5,22.8503]
[1754231062358,3.78357,3473.7,3473.5,20.765]
[1754231062555,3.78357,3473.7,3473.6,2.0853]
[1754231062852,3.2078,3473.7,3473.6,2.0853]
[1754231063255,0.7078,3474.0,3473.6,2.0853]
[1754231063256,4.49122,3474.6,3473.6,3.2078]
[1754231063453,4.49122,3474.6,3474.2,0.57567]
[1754231063753,4.49122,3474.6,3474.5,1.52]
[1754231063954,3.9156,3474.6,3474.5,22.8493]
[1754231064253,0.57558,3474.8,3474.6,1.52]
[1754231064550,1.2522,3474.9,3474.7,0.7767]
[1754231064750,1.57555,3475.0,3474.5,20.764]
[1754231064953,1.0,3475.0,3474.6,0.5756]
[1754231065153,1.0,3475.0,3474.8,1.52]
[1754231065460,1.7078,3475.0,3474.9,22.8483]
[1754231065658,2.2522,3475.0,3474.9,22.8483]
[1754231066257,2.9772,3475.0,3474.9,21.5033]
[1754231066451,2.9772,3475.0,3474.9,20.76]
[1754231067050,2.9772,3475.0,3474.9,21.5033]
[1754231067455,2.9772,3475.0,3474.9,22.0686]
[1754231067757,2.2522,3475.0,3474.9,22.8453]
[1754231067957,2.9772,3475.0,3474.9,22.8453]
[1754231068658,2.2522,3475.0,3474.9,22.8453]
[1754231068853,1.0,3475.0,3474.9,22.8453]
[1754231069160,1.7078,3475.0,3474.9,22.8453]
[1754231071254,2.2295,3475.0,3474.9,24.1606]
[1754231071454,1.0,3475.0,3474.9,24.1606]
[1754231073058,2.2295,3475.0,3474.9,3.4006]
[1754231073258,3.1129,3475.0,3474.9,24.1526]
[1754231073560,1.5217,3475.0,3474.9,24.1526]
[1754231073857,1.0,3475.0,3474.9,24.1526]
[1754231074960,1.0,3475.0,3474.9,24.1506]
[1754231075656,4.3823,3475.0,3474.9,22.8066]
[1754231075959,4.3823,3475.0,3474.9,22.0633]
[1754231077066,0.5217,3474.3,3474.2,3.7731]
[1754231077254,3.3823,3474.3,3474.2,3.4006]
[1754231077456,1.7739,3474.6,3474.5,3.4006]
[1754231077660,0.5217,3474.6,3474.5,24.1476]
[1754231078356,0.5217,3474.7,3474.6,2.0853]
[1754231078558,2.6573,3474.7,3474.6,2.6573]
[1754231079262,2.6573,3474.7,3474.6,3.4006]
[1754231079464,3.3823,3474.7,3474.6,3.4006]
[1754231080962,3.3823,3474.7,3474.6,24.1446]
[1754231083656,0.57569,3474.1,3474.0,0.7044]
[1754231083856,2.16015,3473.8,3473.7,3.3424]
[1754231084062,2.66815,3473.8,3473.7,22.6424]
[1754231084261,3.78348,3474.2,3473.7,24.0824]
[1754231084455,3.78348,3474.2,3474.1,3.3424]
[1754231084456,4.5741,3474.2,3474.1,3.3424]
[1754231084662,1.3663,3474.1,3474.0,1.3699]
[1754231084867,1.3663,3474.1,3474.0,22.8445]
[1754231085165,3.3959,3474.1,3474.0,22.8445]
[1754231085366,3.3959,3474.1,3474.0,24.0814]
[1754231086067,3.2078,3474.2,3474.1,3.3424]
[1754231086367,2.38714,3474.4,3474.3,3.3424]
[1754231086560,2.6698,3474.4,3474.3,24.0794]
[1754231086762,0.508,3474.4,3474.3,24.0794]
[1754231087063,0.5538,3474.7,3474.3,22.68255]
[1754231087064,1.8791,3474.7,3474.3,22.68255]
[1754231087265,3.2454,3474.7,3474.6,3.3424]
[1754231087470,3.9715,3474.7,3474.6,24.0794]
[1754231087669,3.9715,3474.7,3474.6,20.737]
[1754231087862,0.57563,3474.5,3473.9,0.57572]
[1754231088065,2.3341,3474.1,3474.0,1.9024]
[1754231088369,3.3959,3474.1,3474.0,22.1059]
[1754231088568,3.3959,3474.1,3474.0,3.3424]
[1754231088768,3.3959,3474.1,3474.0,24.0784]
[1754231089270,3.3959,3474.1,3474.0,2.0743]
[1754231089478,3.3959,3474.1,3474.0,22.1049]
[1754231089666,3.3959,3474.1,3474.0,22.1039]
[1754231090269,3.3959,3474.1,3474.0,1.3699]
[1754231090465,2.6698,3474.1,3474.0,24.0774]
[1754231090666,1.30175,3474.4,3474.0,24.6531]
[1754231090874,1.9838,3474.4,3474.3,2.8099]
[1754231091074,3.3959,3474.4,3474.3,24.0764]
[1754231091577,3.2078,3474.5,3474.4,3.3424]
[1754231092071,2.6052,3474.7,3474.4,3.3424]
[1754231092072,1.8115,3474.7,3474.6,3.3424]
[1754231092277,1.508,3475.0,3474.9,3.3424]
[1754231092476,1.508,3475.0,3474.9,24.0744]
[1754231092672,3.2078,3475.8,3475.7,2.8099]
[1754231092870,3.2078,3475.8,3475.7,22.7045]
[1754231093376,5.08665,3476.2,3475.8,1.9725]
[1754231093568,5.08665,3476.2,3476.0,1.2681]
[1754231093773,5.81275,3476.2,3476.1,22.74266739]
[1754231094375,5.81275,3476.2,3476.1,0.03916739]
[1754231094680,5.81275,3476.2,3476.1,20.76916739]
[1754231095277,0.57544,3475.7,3475.1,3.78332]
[1754231095476,0.7497,3475.6,3475.3,0.57549]
[1754231095780,3.78321,3475.8,3475.2,20.73]
[1754231095781,0.57543,3475.7,3475.2,20.73]
[1754231095975,2.0296,3475.5,3475.4,0.7044]
[1754231096171,0.7261,3476.1,3475.4,22.6985]
[1754231096378,0.57538,3476.0,3475.5,1.9725]
[1754231096577,1.12919,3476.0,3475.5,2.54796]
[1754231096774,1.3035,3475.9,3475.6,1.9725]
[1754231096975,1.3035,3475.9,3475.8,1.9725]
[1754231097174,2.0296,3475.9,3475.8,1.9725]
[1754231097977,0.57541,3475.8,3475.5,0.5325]
[1754231098183,2.0296,3475.7,3475.6,22.6965]
[1754231098482,0.5538,3475.3,3475.1,4.4447]
[1754231098682,2.0296,3475.3,3475.2,20.723]
[1754231098887,2.0296,3475.3,3475.2,22.6955]
[1754231099885,0.57553,3475.1,3475.0,0.7356]
[1754231100082,2.60513,3475.1,3475.0,21.9891]
[1754231100685,2.60513,3475.1,3475.0,20.721]
[1754231100879,2.0296,3475.0,3474.9,0.7044]
[1754231101184,2.6698,3474.9,3474.8,43.4205]
[1754231101383,0.57552,3475.2,3475.1,1.3699]
[1754231101591,1.44112,3475.2,3475.1,24.0614]
[1754231101792,3.97142,3475.2,3475.1,24.0614]
[1754231102185,3.97142,3475.2,3475.1,22.7933]
[1754231102386,3.97142,3475.2,3475.1,24.0614]
[1754231102691,3.97142,3475.2,3475.1,22.7923]
[1754231103085,3.97142,3475.2,3475.1,22.0879]
[1754231103688,3.97142,3475.2,3475.1,24.0604]
[1754231104093,1.6153,3475.3,3475.2,2.8383]
[1754231104293,3.3959,3475.3,3475.2,21.5828]
[1754231104488,3.3959,3475.3,3475.2,0.4881]
[1754231104692,3.3959,3475.3,3475.2,21.2031]
[1754231104991,3.3959,3475.3,3475.2,24.0574]
[1754231105286,3.2078,3475.5,3475.2,24.0574]
[1754231105492,3.2078,3475.9,3475.8,1.3699]
[1754231105693,3.2078,3475.9,3475.8,22.6875]
[1754231106385,3.2078,3476.3,3476.1,0.57535]
[1754231106589,3.2078,3476.7,3476.5,0.57529]
[1754231106891,0.7261,3477.1,3477.0,0.5325]
[1754231106892,3.2078,3477.1,3477.0,0.5325]
[1754231107096,3.98987473,3477.1,3477.0,22.6845]
[1754231107994,4.54367473,3477.1,3477.0,22.6845]
[1754231108581,5.29337473,3477.1,3477.0,22.6845]
[1754231108886,6.01947473,3477.1,3477.0,22.6845]
[1754231109293,6.59466473,3477.1,3477.0,20.707]
[1754231110391,0.57526,3476.7,3476.6,1.9725]
[1754231110599,5.41385281,3477.0,3476.6,20.705]
[1754231110888,3.2078,3476.7,3476.6,20.705]
[1754231111196,5.2374,3476.7,3476.6,20.705]
[1754231111593,0.7261,3476.5,3476.2,1.44]
[1754231111898,2.0296,3476.4,3476.3,21.9691]
[1754231112396,2.0296,3476.4,3476.3,22.6735]
[1754231112591,1.3035,3476.4,3476.3,22.6735]
[1754231112900,3.9339,3477.1,3476.5,1.9725]
[1754231113196,5.2374,3477.1,3476.8,1.44]
[1754231113385,5.81259,3477.1,3477.0,1.2681]
[1754231113698,5.2374,3477.1,3477.0,1.9725]
[1754231113892,3.2078,3477.1,3477.0,1.9725]
[1754231114292,5.2097,3477.1,3477.0,1.9725]
[1754231115500,4.4476,3477.1,3477.0,1.9725]
[1754231115699,1.2398,3477.1,3477.0,1.9725]
[1754231115898,2.0019,3477.1,3477.0,1.9725]
[1754231116099,1.2398,3477.1,3477.0,3.3184]
[1754231116301,0.5325,3477.1,3477.0,3.3184]
[1754231116702,1.3839,3477.1,3477.0,3.3184]
[1754231116897,0.57516,3477.3,3477.1,2.0616]
[1754231117104,3.16156,3477.3,3477.2,24.1005]
[1754231117401,3.92366,3477.3,3477.2,24.0995]
[1754231118411,3.92366,3477.3,3477.2,23.5303]
[1754231118600,3.92366,3477.3,3477.2,24.0995]
[1754231119206,3.92366,3477.3,3477.2,21.2018]
[1754231119605,3.92366,3477.3,3477.2,20.692]
[1754231120410,0.57521,3477.0,3476.9,0.7607]
[1754231120617,3.92371,3477.0,3476.9,24.0935]
[1754231120807,7.13151,3477.0,3476.9,24.0935]
[1754231121708,7.13151,3477.0,3474.6,5.1359715]
[1754231121709,0.7073,3476.5,3476.1,45.217]
[1754231122009,1.4694,3476.9,3476.7,1.3459]
[1754231122214,1.4694,3476.9,3476.5,0.57529]
[1754231122215,1.07083,3476.9,3476.8,24.0915]
[1754231122613,1.92183,3476.9,3476.8,3.4075]
[1754231122816,0.57529,3476.6,3476.5,1.3459]
[1754231123016,3.78301,3477.0,3476.9,3.4075]
[1754231123213,3.78301,3477.0,3476.9,24.0915]
[1754231123516,4.27861,3477.0,3476.9,24.0915]
[1754231123718,4.63441,3477.0,3476.9,24.0915]
[1754231124019,7.13151,3477.0,3476.9,24.0915]
[1754231124718,7.13151,3477.0,3476.9,24.0905]
[1754231125010,3.2078,3477.0,3476.9,24.0905]
[1754231125611,5.7942,3477.0,3476.9,24.0905]
[1754231125810,6.5563,3477.0,3476.9,24.0905]
[1754231126115,5.7942,3477.0,3476.9,24.0905]
[1754231126420,6.5563,3477.0,3476.9,24.0905]
[1754231128113,5.7942,3477.0,3476.9,24.0905]
[1754231129810,4.5544,3477.0,3476.9,24.0905]
[1754231130909,0.57516,3477.3,3477.0,0.57521]
[1754231131113,3.7034,3477.6,3477.5,0.8361]
[1754231131314,3.7034,3477.6,3477.5,24.0785]
[1754231131718,4.0592,3477.6,3477.5,24.0785]
[1754231132021,5.12951,3477.6,3477.5,24.0785]
[1754231132317,5.66201,3477.6,3477.5,24.0785]
[1754231133423,7.13141,3477.6,3477.5,24.0785]
[1754231134417,5.7942,3477.6,3477.5,24.0785]
[1754231134614,4.5544,3477.6,3477.5,24.0785]
[1754231134819,6.5563,3477.6,3477.5,2.0776]
[1754231135018,6.5563,3477.6,3477.5,22.0109]
[1754231135521,4.5913,3477.6,3477.5,20.665]
[1754231135722,5.0869,3477.6,3477.5,20.665]
[1754231135915,5.66201,3477.6,3477.5,20.665]
[1754231136114,3.92367,3477.3,3477.2,3.4075]
[1754231136321,3.92367,3477.3,3477.2,2.0776]
[1754231136514,3.92367,3477.3,3477.2,20.662]
[1754231136713,3.92367,3477.3,3476.9,2.6758]
[1754231136714,1.92181,3477.0,3476.9,2.6758]
[1754231137018,3.92371,3477.0,3476.9,3.4075]
[1754231137218,3.92371,3477.0,3476.9,24.0685]
[1754231137816,3.92371,3477.0,3476.9,3.4075]
[1754231138016,3.92371,3477.0,3476.9,24.0675]
[1754231138217,3.92371,3477.0,3476.9,24.0665]
[1754231138423,0.8514,3476.5,3476.4,6.0461]
[1754231138621,2.31067,3476.7,3476.6,0.97]
[1754231138820,3.92377,3476.7,3476.6,3.4075]
[1754231139611,0.7621,3476.7,3476.4,3.2078]
[1754231139815,3.3485,3476.5,3476.4,0.5098]
[1754231140018,3.3485,3476.5,3476.1,44.559]
[1754231140019,3.3485,3476.2,3476.1,42.4974]
[1754231140321,6.5563,3476.2,3476.1,63.1534]
[1754231141726,6.5563,3476.2,3476.1,21.7144]
[1754231143020,6.5563,3476.2,3476.1,21.7124]
[1754231143826,6.5563,3476.2,3476.1,21.7094]
[1754231144124,6.5563,3476.2,3476.1,22.2192]
[1754231144519,6.5563,3476.2,3476.1,23.0553]
[1754231144726,6.5563,3476.2,3476.1,1.0574]
[1754231145029,6.5563,3476.2,3475.2,2.57265677]
[1754231145030,0.9519,3475.3,3475.2,2.5138]
[1754231145321,0.9519,3475.3,3475.2,23.8434]
[1754231145622,0.4667,3475.3,3475.2,23.8434]
[1754231145925,1.236,3475.5,3475.2,23.8434]
[1754231146132,2.0386,3475.6,3475.5,3.1924]
[1754231146325,2.0386,3475.6,3475.5,23.8424]
[1754231146622,0.5754,3475.9,3475.7,3.1924]
[1754231146821,7.05773,3476.3,3476.2,1.3004]
[1754231147021,7.05773,3476.3,3476.2,3.1924]
[1754231147326,3.2078,3476.3,3476.2,3.1924]
[1754231147527,0.5753,3476.5,3476.2,3.1924]
[1754231147825,0.4667,3476.4,3476.3,21.9494]
[1754231148217,0.9519,3476.4,3476.3,2.684]
[1754231148420,3.2078,3476.7,3475.8,3.5716]
[1754231148421,3.84999,3475.9,3475.8,3.5716]
[1754231148620,3.84999,3475.9,3475.8,24.2186]
[1754231148822,3.84999,3475.9,3475.8,5.7216]
[1754231149027,3.84999,3475.9,3475.8,26.3686]
[1754231149424,3.84999,3475.9,3475.8,26.3676]
[1754231149827,3.12245,3475.6,3475.5,1.3004]
[1754231150027,3.85005,3475.6,3475.5,23.8384]
[1754231150227,0.9519,3475.6,3475.5,23.8384]
[1754231150427,0.4667,3475.6,3475.5,23.8384]
[1754231151024,0.57542,3475.8,3475.5,21.9464]
[1754231151230,3.85004,3475.6,3475.5,23.1598]
[1754231151425,3.85004,3475.6,3475.5,23.8364]
[1754231151623,3.85004,3475.6,3475.5,3.1924]
[1754231152229,3.85004,3475.6,3475.5,23.1304]
[1754231152423,3.85004,3475.6,3475.5,23.8354]
[1754231152620,0.57551,3475.2,3475.1,45.8392]
[1754231152825,1.52741,3475.2,3475.1,63.953]
[1754231153423,1.04221,3475.2,3475.1,63.953]
[1754231154121,1.311,3475.2,3474.8,0.5084]
[1754231154429,3.2746,3474.9,3474.8,3.1924]
[1754231154629,3.2746,3474.9,3474.8,23.8334]
[1754231155628,0.57553,3475.1,3474.8,21.9414]
[1754231155926,0.57566,3474.3,3474.1,2.57265677]
[1754231156135,1.88674,3473.8,3473.7,2.57265677]
[1754231156323,1.42007,3473.6,3473.5,3.00926347]
[1754231156526,1.38742,3472.7,3472.2,3.2078]
[1754231156725,1.38751,3472.2,3472.1,20.637]
[1754231156936,3.2078,3472.5,3472.2,1.892]
[1754231157133,0.57598,3472.4,3472.2,1.892]
[1754231157431,1.30358,3472.4,3472.3,1.3836]
[1754231157631,0.57598,3472.4,3472.3,1.187]
[1754231157824,0.57597,3472.4,3471.6,3.2078]
[1754231158026,0.57602,3472.2,3472.1,1.3836]
[1754231158227,0.57602,3472.2,3472.0,20.637]
[1754231158433,3.78376,3472.5,3472.4,1.892]
[1754231158727,0.57596,3472.6,3472.4,1.892]
[1754231158928,0.0839,3473.1,3471.6,3.2078]
[1754231158929,3.2078,3472.5,3471.8,0.705]
[1754231159235,4.0193,3472.0,3471.6,21.3206]
[1754231159430,4.0193,3472.0,3471.6,0.6786]
[1754231159628,4.0193,3472.0,3471.9,2.42048129]
[1754231159830,3.2078,3472.0,3471.9,2.92888129]
[1754231160130,3.2078,3472.2,3471.9,1.03688129]
[1754231160430,3.2078,3472.2,3472.1,1.892]
[1754231160632,0.0839,3472.9,3472.3,0.5084]
[1754231160938,0.0839,3472.7,3472.2,1.892]
[1754231161128,0.8115,3472.9,3472.4,1.3836]
[1754231161428,0.0839,3472.7,3472.6,1.892]
[1754231161831,3.2078,3473.0,3472.6,0.5084]
[1754231162024,3.2078,3473.0,3472.6,1.892]
[1754231162224,3.2078,3473.0,3472.8,0.5084]
[1754231162425,3.2078,3473.0,3472.9,1.3836]
[1754231162725,1.30684069,3474.9,3473.0,1.892]
[1754231162726,0.0839,3474.0,3473.0,1.892]
[1754231162930,0.0839,3474.0,3473.7,1.892]
[1754231163132,0.57569,3474.1,3473.8,1.187]
[1754231163330,1.5155,3474.0,3473.8,0.5084]
[1754231163526,0.7276,3473.9,3473.7,0.6786]
[1754231163833,0.7879,3473.8,3473.7,1.892]
[1754231164734,0.7879,3473.8,3473.7,1.3836]
[1754231164928,0.7879,3473.7,3473.5,20.642]
[1754231165130,0.7276,3473.5,3473.4,20.642]
[1754231165334,0.8115,3473.2,3473.0,22.532]
[1754231165630,3.2078,3473.5,3473.0,22.532]
[1754231165837,0.7879,3473.7,3473.5,0.5084]
[1754231166040,0.7879,3473.7,3473.6,1.3836]
[1754231166233,3.78353,3473.9,3473.0,20.64]
[1754231166234,0.57574,3473.9,3473.7,1.3836]
[1754231166433,0.57574,3473.9,3473.0,20.64]
[1754231166434,0.57577,3473.6,3473.0,20.639]
[1754231166634,3.2078,3473.4,3473.0,20.639]
[1754231167037,1.5155,3473.1,3473.0,21.3176]
[1754231167635,3.2078,3473.4,3473.0,21.3176]
[1754231167636,3.2078,3473.4,3473.1,2.46786]
[1754231167843,3.2078,3473.4,3473.2,0.5084]
[1754231168140,3.9957,3473.4,3473.3,1.3836]
[1754231168439,8.62165281,3474.0,3473.4,2.46781]
[1754231168740,0.7879,3473.8,3473.6,1.892]
[1754231168942,0.0839,3473.7,3473.6,1.892]
[1754231169240,0.7879,3473.7,3473.6,1.892]
[1754231170835,0.7276,3473.9,3473.6,1.892]
[1754231171044,0.7276,3473.9,3473.4,20.638]
[1754231171045,0.7879,3473.8,3473.7,1.892]
[1754231171244,1.5155,3473.8,3473.7,1.892]
[1754231172144,3.9957,3474.0,3473.4,21.21379]
[1754231172336,3.9957,3474.0,3473.6,1.187]
[1754231172337,0.0839,3473.9,3473.6,1.187]
[1754231172540,0.7879,3473.8,3473.7,1.892]
[1754231173642,4.1211,3474.0,3473.8,2.1264]
[1754231173843,4.69682,3474.0,3473.9,2.1264]
[1754231174047,4.1211,3474.0,3473.9,2.1264]
[1754231174538,4.8631,3474.0,3473.9,2.1264]
[1754231175053,4.1211,3474.0,3473.9,2.1264]
[1754231176249,5.3824,3474.0,3473.9,3.495]
[1754231176751,3.2078,3474.0,3473.9,3.495]
[1754231176941,3.2078,3474.4,3473.9,22.7543]
[1754231177146,3.2078,3474.4,3474.3,1.9674]
[1754231177451,3.2078,3474.4,3474.3,3.495]
[1754231178051,1.169,3474.4,3474.3,3.495]
[1754231179951,4.223,3474.8,3474.7,3.495]
[1754231180150,6.1244,3474.8,3474.7,2.1385]
[1754231180351,1.0152,3474.5,3474.4,2.7251]
[1754231180649,2.9166,3474.5,3474.4,2.7251]
[1754231181049,2.9166,3474.5,3474.4,3.495]
[1754231181846,3.9673,3474.8,3474.4,1.3686]
[1754231182048,5.41385281,3475.1,3474.4,1.3686]
[1754231182049,1.7747,3475.1,3475.0,1.3686]
[1754231182250,0.81784385,3475.1,3475.0,3.495]
[1754231182452,2.75018,3474.8,3474.7,2.8962]
[1754231182753,2.99244385,3474.8,3474.7,3.495]
[1754231182941,1.34214385,3474.8,3474.7,3.495]
[1754231183145,1.43838,3476.2,3475.2,0.57551]
[1754231183146,1.01373274,3475.5,3475.2,0.57551]
[1754231183343,0.81897133,3475.4,3475.3,2.1264]
[1754231183554,0.81897133,3475.4,3475.2,21.19451]
[1754231183555,3.2078,3475.7,3475.2,20.619]
[1754231183747,1.3367,3475.5,3475.3,22.7444]
[1754231183950,1.3367,3475.5,3475.4,1.5276]
[1754231184252,1.3367,3475.5,3475.4,2.1264]
[1754231184451,0.742,3475.5,3475.1,0.5988]
[1754231184652,0.742,3475.5,3475.0,1.34544]
[1754231184653,0.742,3475.3,3475.2,20.617]
[1754231184953,2.07701,3475.2,3475.0,0.7577]
[1754231185153,2.07701,3475.2,3474.9,3.2078]
[1754231185154,2.0787,3475.1,3474.9,3.2078]
[1754231185456,2.0787,3475.0,3474.9,3.2078]
[1754231185648,2.65425,3475.0,3474.8,21.3859]
[1754231185849,1.3367,3474.9,3474.8,22.1436]
[1754231186048,0.57558,3474.8,3474.6,0.7699]
[1754231186249,2.0787,3474.9,3474.7,21.3819]
[1754231186451,1.3367,3474.8,3474.7,22.1396]
[1754231186656,0.5772,3475.0,3474.7,20.612]
[1754231186856,0.5772,3475.0,3474.9,1.5276]
[1754231186857,1.3367,3475.0,3474.9,1.5276]
[1754231187356,0.57548,3475.4,3475.0,2.1264]
[1754231187560,1.91221,3475.2,3475.1,2.1264]
[1754231187756,1.3367,3475.2,3475.1,2.1264]
[1754231188452,3.78331,3475.2,3475.1,20.61]
[1754231188850,3.78331,3475.2,3474.9,20.609]
[1754231189159,1.3367,3475.1,3475.0,1.5276]
[1754231189346,2.0787,3475.1,3475.0,1.5276]
[1754231189857,2.0787,3475.1,3474.9,21.2078]
[1754231189858,3.2078,3475.2,3475.1,2.1264]
[1754231190056,3.2078,3475.2,3475.1,1.5276]
[1754231190251,0.5772,3475.0,3474.9,20.609]
[1754231190454,3.2078,3475.2,3474.9,22.7354]
[1754231190658,3.2078,3475.2,3475.0,2.1264]
[1754231190856,0.57556,3474.9,3474.6,3.8066]
[1754231191059,0.57559,3474.7,3474.6,24.5817]
[1754231191363,5.86209,3474.7,3474.6,20.604]
[1754231191553,0.57565,3474.4,3474.0,0.7699]
[1754231191861,0.5772,3474.0,3473.9,2.1264]
[1754231192066,0.5772,3474.0,3473.9,22.7294]
[1754231192258,2.0787,3474.0,3473.9,20.603]
[1754231192962,1.5015,3474.0,3473.9,20.603]
[1754231193157,0.57577,3473.6,3473.5,21.3709]
[1754231193369,1.91247,3473.6,3473.5,22.1286]
[1754231193558,0.57586,3473.1,3473.0,1.3687]
[1754231193867,1.91256,3473.1,3473.0,21.3709]
[1754231194460,1.3367,3472.6,3472.5,21.3699]
[1754231194661,0.57599,3472.3,3472.2,0.5988]
[1754231194859,0.5772,3472.3,3472.2,22.7264]
[1754231195859,0.7595,3472.4,3472.2,22.7264]
[1754231196063,1.3367,3472.4,3472.3,2.1264]
[1754231196473,3.78374,3472.7,3472.2,23.8078]
[1754231196772,3.2078,3473.1,3472.6,0.7699]
[1754231196963,3.2078,3473.1,3472.8,1.5276]
[1754231197170,0.5772,3473.0,3472.7,20.6]
[1754231197473,0.5772,3473.0,3472.9,2.1264]
[1754231197771,1.3367,3473.0,3472.9,2.1264]
[1754231197971,1.91257,3473.0,3472.9,1.5276]
[1754231198174,1.3367,3473.0,3472.9,2.1264]
[1754231198474,0.5772,3473.0,3472.9,2.1264]
[1754231199070,3.2078,3473.1,3472.9,2.1264]
[1754231199577,3.2078,3473.1,3473.0,2.1264]
[1754231201272,3.2078,3473.7,3472.7,20.6]
[1754231201476,3.2078,3474.2,3473.6,0.57577]
[1754231201773,3.2078,3474.2,3473.8,2.1264]
[1754231201968,3.2078,3474.2,3473.8,0.57573]
[1754231202169,3.2078,3474.2,3474.0,1.9322]
[1754231202476,0.742,3474.7,3473.0,1.43969]
[1754231202477,0.57566,3474.3,3474.2,2.1264]
[1754231202673,1.15281,3474.6,3474.3,2.1264]
[1754231202869,0.57564,3474.4,3474.2,20.596]
[1754231203174,1.15284,3474.4,3474.2,20.596]
[1754231203375,1.15284,3474.4,3474.3,2.1264]
[1754231204065,1.93764,3474.4,3474.3,1.5276]